fUSD/lending_fUSD_20260203
["ID","MTS","AMOUNT","RATE_DAILY","PERIOD"]
[404421164,1770127838850,-416.0,8.9e-05,2]
[404421166,1770127838860,-2617.0576,8.944e-05,2]
[404421168,1770127838869,-33292.3487,8.944e-05,2]
[404421169,1770127838878,-7798.7438,8.944e-05,2]
[404421171,1770127838888,-2500.0,9e-05,3]
[404421174,1770127838900,-796.37,9.1e-05,2]
[404421175,1770127838909,-2301.57,9.1e-05,2]
[404421177,1770127838919,-713.29,9.132e-05,2]
[404421179,1770127838928,-166.51015303,9.133e-05,2]
[404421181,1770127838937,-562.28195765,9.133e-05,2]
[404421183,1770127838946,-500.0,9.133e-05,2]
[404421185,1770127838957,-500.0,9.133e-05,2]
[404421187,1770127838967,-500.0,9.133e-05,2]
[404421189,1770127838978,-500.0,9.133e-05,2]
[404421191,1770127838989,-500.55069623,9.133e-05,2]
[404421194,1770127838998,-500.0,9.133e-05,2]
[404421195,1770127839008,-500.0,9.133e-05,2]
[404421197,1770127839017,-500.0,9.133e-05,2]
[404421200,1770127839027,-4928.42568292,9.186e-05,2]
[404421201,1770127839036,-13006.19335253,9.186e-05,2]
[404421204,1770127839046,-22944.46674721,9.186e-05,2]
[404421206,1770127839056,-34323.5500354,9.336e-05,2]
[404421208,1770127839065,-407.0,9.376e-05,2]
[404421209,1770127839074,-255.0,9.376e-05,2]
[404421212,1770127839084,-1680.0,9.376e-05,2]
[404421214,1770127839093,-300.0,9.376e-05,2]
[404421216,1770127839102,-300.0,9.376e-05,2]
[404421218,1770127839111,-250.0,9.376e-05,2]
[404421220,1770127839120,-1307.32162239,9.418e-05,2]
[404421222,1770127839130,-300.0,9.46e-05,2]
[404421224,1770127839139,-250.0,9.46e-05,2]
[404421226,1770127839148,-500.0,9.46e-05,2]
[404421227,1770127839157,-193.0,9.467e-05,2]
[404421230,1770127839167,-713.29,9.589e-05,2]
[404421231,1770127839176,-447.0,9.646e-05,2]
[404421233,1770127839185,-500.0,9.681e-05,2]
[404421235,1770127839194,-1000.0,9.817e-05,2]
[404421237,1770127839203,-188.0,9.895e-05,2]
[404421240,1770127839213,-272.0,9.897e-05,2]
[404421241,1770127839222,-415.0,9.917e-05,2]
[404421243,1770127839231,-491.0,9.936e-05,2]
[404421245,1770127839240,-164.01557148,0.0001,2]
[404421247,1770127839249,-164.01557148,0.0001,2]
[404421249,1770127839259,-151.0,0.0001,2]
[404421251,1770127839268,-151.0,0.0001,2]
[404421253,1770127839277,-151.0,0.0001,2]
[404421255,1770127839287,-151.0,0.0001,2]
[404421258,1770127839296,-151.0,0.0001,2]
[404421260,1770127839306,-151.0,0.0001,2]
[404421261,1770127839315,-151.0,0.0001,2]
[404421262,1770127839324,-151.0,0.0001,2]
[404421263,1770127839333,-151.0,0.0001,2]
[404421264,1770127839343,-151.0,0.0001,2]
[404421265,1770127839354,-151.0,0.0001,2]
[404421266,1770127839364,-151.0,0.0001,2]
[404421267,1770127839373,-151.0,0.0001,2]
[404421268,1770127839383,-151.0,0.0001,2]
[404421269,1770127839392,-151.0,0.0001,2]
[404421270,1770127839402,-151.0,0.0001,2]
[404421271,1770127839411,-151.0,0.0001,2]
[404421272,1770127839421,-151.0,0.0001,2]
[404421273,1770127839430,-151.0,0.0001,2]
[404421274,1770127839439,-151.0,0.0001,2]
[404421275,1770127839448,-269.09178599,0.0001,2]
[404421276,1770127839458,-824.69144558,0.0001,2]
[404421277,1770127839467,-824.69144558,0.0001,2]
[404421278,1770127839476,-150.01399847,0.00010008,2]
[404421279,1770127839485,-713.29,0.00010046,2]
[404421280,1770127839495,-433.0,0.00010314,2]
[404421281,1770127839504,-2351.0,0.00010314,2]
[404421282,1770127839514,-713.29,0.00010502,2]
[404421283,1770127839524,-46440.9792,0.00010836,2]
[404421284,1770127839533,-2147.65440156,0.000109,2]
[404421285,1770127839542,-2147.65440152,0.000109,2]
[404421286,1770127839551,-1000.0,0.00010908,2]
[404421287,1770127839562,-150.0,0.00010959,2]
[404421288,1770127839572,-150.0,0.00010959,2]
[404421289,1770127839581,-713.29,0.00010959,2]
[404421290,1770127839592,-4870.41562142,0.00011099,2]
[404421291,1770127839601,-4870.4156214,0.00011099,2]
[404421292,1770127839611,-4870.4156214,0.00011099,2]
[404421293,1770127839621,-4870.4156214,0.00011099,2]
[404421294,1770127839631,-4870.4156214,0.00011099,2]
[404421295,1770127839641,-4870.4156214,0.00011099,2]
[404421296,1770127839650,-4870.4156214,0.00011099,2]
[404421297,1770127839663,-4870.4156214,0.00011099,2]
[404421298,1770127839672,-4870.4156214,0.00011099,2]
[404421299,1770127839683,-52502.69927179,0.00011099,2]
[404421300,1770127839692,-52502.69927172,0.00011099,2]
[404421301,1770127839702,-52502.69927172,0.00011099,2]
[404421302,1770127839711,-52502.69927172,0.00011099,2]
[404421303,1770127839720,-52502.69927172,0.00011099,2]
[404421304,1770127839730,-52502.69927172,0.00011099,2]
[404421305,1770127839739,-52502.69927172,0.00011099,2]
[404421306,1770127839748,-150.01399847,0.00011175,2]
[404421307,1770127839757,-2147.65440152,0.00011209,2]
[404421308,1770127839767,-4870.4156214,0.0001125,2]
[404421309,1770127839776,-250.0,0.00011263,2]
[404421310,1770127839786,-736.0,0.00011345,2]
[404421311,1770127839796,-3292.0,0.00011345,2]
[404421312,1770127839806,-20293.34,0.0001135,2]
[404421313,1770127839816,-713.29,0.00011416,2]
[404421314,1770127839826,-11985.22914064,0.00011425,2]
[404421315,1770127839837,-8671.74,0.00011663,2]
[404421316,1770127839847,-434.82,0.00011701,2]
[404421317,1770127839857,-713.29,0.00011872,2]
[404421318,1770127839866,-1000.0,0.00011998,2]
[404421319,1770127839875,-713.29,0.00012329,2]
[404421320,1770127839885,-150.01399847,0.00012342,2]
[404421321,1770127839894,-1252.0,0.00012479,2]
[404421322,1770127839904,-4609.0,0.0001248,2]
[404421323,1770127839915,-2147.65440152,0.00012547,2]
[404421324,1770127839926,-151.74,0.00012871,2]
[404421325,1770127839937,-1000.0,0.00013089,2]
[404421326,1770127839948,-269.09178599,0.00013216,2]
[404421327,1770127839958,-151.0,0.00013565,2]
[404421328,1770127839968,-151.0,0.00013565,2]
[404421329,1770127839978,-151.0,0.00013569,2]
[404421330,1770127839987,-151.0,0.00013569,2]
[404421331,1770127839996,-151.0,0.00013592,2]
[404421332,1770127840006,-151.0,0.00013592,2]
[404421333,1770127840015,-500.0,0.00013698,2]
[404421334,1770127840024,-500.0,0.00013698,2]
[404421335,1770127840033,-500.0,0.00013698,2]
[404421336,1770127840042,-500.0,0.00013698,2]
[404421337,1770127840051,-500.0,0.00013698,2]
[404421338,1770127840060,-505.6105481,0.00013698,2]
[404421339,1770127840070,-500.0,0.00013698,2]
[404421340,1770127840078,-500.0,0.00013698,2]
[404421341,1770127840087,-500.0,0.00013698,2]
[404421342,1770127840096,-500.0,0.00013698,2]
[404421343,1770127840106,-500.0,0.00013698,2]
[404421344,1770127840116,-500.0,0.00013698,2]
[404421345,1770127840125,-500.0,0.00013698,2]
[404421346,1770127840136,-500.0,0.00013698,2]
[404421347,1770127840145,-500.0,0.00013698,2]
[404421348,1770127840154,-500.0,0.00013698,2]
[404421349,1770127840163,-500.0,0.00013698,2]
[404421350,1770127840172,-500.0,0.00013698,2]
[404421351,1770127840181,-500.0,0.00013698,2]
[404421352,1770127840190,-500.0,0.00013698,2]
[404421353,1770127840199,-340.45778603,0.00013698,2]
[404421354,1770127840208,-509.06540724,0.00013698,2]
[404421355,1770127840217,-295.88498896,0.00013698,2]
[404421356,1770127840226,-500.0,0.00013698,2]
[404421357,1770127840236,-500.0,0.00013698,2]
[404421358,1770127840245,-500.0,0.00013698,2]
[404421359,1770127840260,-500.0,0.00013698,2]
[404421360,1770127840269,-500.0,0.00013698,2]
[404421361,1770127840278,-500.0,0.00013698,2]
[404421362,1770127840287,-500.0,0.00013698,2]
[404421363,1770127840296,-500.0,0.00013698,2]
[404421364,1770127840306,-500.0,0.00013698,2]
[404421365,1770127840315,-548.33821979,0.00013698,2]
[404421366,1770127840324,-552.61203619,0.00013698,2]
[404421367,1770127840333,-500.0,0.00013698,2]
[404421368,1770127840342,-500.0,0.00013698,2]
[404421369,1770127840351,-500.0,0.00013698,2]
[404421370,1770127840360,-500.0,0.00013698,2]
[404421371,1770127840369,-545.58231824,0.00013698,2]
[404421372,1770127840379,-500.0,0.00013698,2]
[404421373,1770127840389,-500.0,0.00013698,2]
[404421374,1770127840398,-500.0,0.00013698,2]
[404421375,1770127840407,-500.0,0.00013698,2]
[404421376,1770127840416,-500.0,0.00013698,2]
[404421377,1770127840425,-500.0,0.00013698,2]
[404421378,1770127840435,-500.0,0.00013698,2]
[404421379,1770127840444,-500.0,0.00013698,2]
[404421380,1770127840453,-371.76186134,0.00013698,2]
[404421381,1770127840462,-500.0,0.00013698,2]
[404421382,1770127840471,-500.0,0.00013698,2]
[404421383,1770127840481,-500.0,0.00013698,2]
[404421384,1770127840490,-438.97921379,0.00013698,2]
[404421385,1770127840499,-452.02134495,0.00013698,2]
[404421386,1770127840508,-199.38200897,0.00013698,2]
[404421387,1770127840518,-500.0,0.00013698,2]
[404421388,1770127840527,-500.0,0.00013698,2]
[404421389,1770127840536,-500.0,0.00013698,2]
[404421390,1770127840545,-500.0,0.00013698,2]
[404421391,1770127840555,-378.56522147,0.00013698,2]
[404421392,1770127840564,-500.0,0.00013698,2]
[404421393,1770127840574,-501.81901913,0.00013698,2]
[404421394,1770127840583,-512.75,0.00013698,2]
[404421395,1770127840592,-512.75,0.00013698,2]
[404421396,1770127840601,-512.75,0.00013698,2]
[404421397,1770127840610,-512.75,0.00013698,2]
[404421398,1770127840619,-512.75,0.00013698,2]
[404421399,1770127840629,-512.75,0.00013698,2]
[404421400,1770127840639,-512.75,0.00013698,2]
[404421401,1770127840648,-512.75,0.00013698,2]
[404421402,1770127840661,-512.75,0.00013698,2]
[404421403,1770127840670,-512.75,0.00013698,2]
[404421404,1770127840680,-512.75,0.00013698,2]
[404421405,1770127840689,-5521.08,0.00013699,2]
[404421406,1770127840699,-500.0,0.000137,2]
[404421407,1770127840708,-260.20893212,0.000137,2]
[404421408,1770127840717,-500.0,0.000137,2]
[404421409,1770127840727,-500.0,0.000137,2]
[404421410,1770127840736,-500.0,0.000137,2]
[404421411,1770127840746,-500.0,0.000137,2]
[404421412,1770127840755,-6453.0,0.00013728,2]
[404421413,1770127840765,-1371.0,0.00013732,2]
[404421414,1770127840775,-2147.65440152,0.00013885,2]
[404421415,1770127840784,-1000.0,0.00014248,2]
[404421416,1770127840793,-1000.0,0.00014248,2]
[404421417,1770127840803,-500.0,0.00014248,2]
[404421418,1770127840812,-5521.08,0.00014384,2]
[404421419,1770127840821,-160.0,0.00014398,2]
[404421420,1770127840830,-150.01399847,0.00014676,2]
[404421421,1770127840839,-495.7739334,0.00014796,2]
[404421422,1770127840849,-369.98194845,0.00014796,2]
[404421423,1770127840859,-5521.08,0.00015068,2]
[404421424,1770127840867,-7884.0,0.00015101,2]
[404421425,1770127840876,-2147.65440152,0.00015223,2]
[404421426,1770127840886,-150.0,0.000153,7]
[404421427,1770127840895,-374.613885,0.000153,7]
[404421428,1770127840904,-599.227771,0.000153,7]
[404421429,1770127840913,-823.841657,0.000153,7]
[404421430,1770127840922,-1048.455543,0.000153,7]
[404421431,1770127840931,-1273.069429,0.000153,7]
[404421432,1770127840940,-1497.683314,0.000153,7]
[404421433,1770127840949,-1722.2972,0.000153,7]
[404421434,1770127840958,-1946.911086,0.000153,7]
[404421435,1770127840967,-2171.524972,0.000153,7]
[404421436,1770127840976,-500.0,0.00015562,2]
[404421437,1770127840985,-5521.08,0.00015753,2]
[404421438,1770127840994,-627.41495303,0.00015758,2]
[404421439,1770127841003,-150.01399847,0.00015843,2]
[404421440,1770127841011,-500.0,0.000159,5]
[404421441,1770127841020,-500.0,0.00015911,2]
[404421442,1770127841029,-5000.0,0.0001596,2]
[404421443,1770127841038,-256.701042,0.00016,2]
[404421444,1770127841047,-434.82,0.00016108,2]
[404421445,1770127841057,-9999.99,0.00016116,2]
[404421446,1770127841067,-425.76,0.00016145,2]
[404421447,1770127841076,-150.0,0.00016182,7]
[404421448,1770127841086,-658.611442,0.00016182,7]
[404421449,1770127841095,-1167.222885,0.00016182,7]
[404421450,1770127841105,-1675.834327,0.00016182,7]
[404421451,1770127841114,-2184.44577,0.00016182,7]
[404421452,1770127841124,-2693.057212,0.00016182,7]
[404421453,1770127841133,-3201.668655,0.00016182,7]
[404421454,1770127841142,-3710.280097,0.00016182,7]
[404421455,1770127841151,-4218.89154,0.00016182,7]
[404421456,1770127841160,-4727.502982,0.00016182,7]
[404421457,1770127841169,-1000.0,0.00016213,7]
[404421458,1770127841178,-9681.08,0.00016308,2]
[404421459,1770127841187,-1084.09055279,0.00016354,2]
[404421460,1770127841196,-500.0,0.00016396,2]
[404421461,1770127841205,-1042.0,0.0001641,2]
[404421462,1770127841215,-457.87,0.00016438,2]
[404421463,1770127841224,-457.87,0.00016438,3]
[404421464,1770127841232,-457.87,0.00016438,4]
[404421465,1770127841241,-457.87,0.00016438,5]
[404421466,1770127841251,-457.87,0.00016438,6]
[404421467,1770127841260,-457.87,0.00016438,7]
[404421468,1770127841268,-457.87,0.00016438,8]
[404421469,1770127841277,-457.87,0.00016438,9]
[404421470,1770127841286,-457.87,0.00016438,10]
[404421471,1770127841295,-457.87,0.00016438,11]
[404421472,1770127841304,-457.87,0.00016438,12]
[404421473,1770127841313,-457.87,0.00016438,13]
[404421474,1770127841322,-457.87,0.00016438,14]
[404421475,1770127841332,-457.87,0.00016438,15]
[404421476,1770127841341,-457.87,0.00016438,16]
[404421477,1770127841350,-457.87,0.00016438,17]
[404421478,1770127841359,-500.0,0.00016438,2]
[404421479,1770127841369,-530.22332732,0.00016438,2]
[404421480,1770127841378,-500.0,0.00016438,2]
[404421481,1770127841387,-996.68343672,0.00016438,2]
[404421482,1770127841396,-996.68343672,0.00016438,2]
[404421483,1770127841406,-996.68343672,0.00016438,2]
[404421484,1770127841415,-996.68343672,0.00016438,2]
[404421485,1770127841425,-996.68343672,0.00016438,2]
[404421486,1770127841434,-996.68343672,0.00016438,2]
[404421487,1770127841443,-996.68343672,0.00016438,2]
[404421488,1770127841453,-996.68343672,0.00016438,2]
[404421489,1770127841462,-996.68343672,0.00016438,2]
[404421490,1770127841471,-996.68343672,0.00016438,2]
[404421491,1770127841480,-996.68343672,0.00016438,2]
[404421492,1770127841490,-996.68343672,0.00016438,2]
[404421493,1770127841499,-996.68343672,0.00016438,2]
[404421494,1770127841508,-996.68343672,0.00016438,2]
[404421495,1770127841517,-996.68343672,0.00016438,2]
[404421496,1770127841527,-996.68343672,0.00016438,2]
[404421497,1770127841536,-996.68343672,0.00016438,2]
[404421498,1770127841545,-996.68343672,0.00016438,2]
[404421499,1770127841555,-996.68343672,0.00016438,2]
[404421500,1770127841564,-996.68343672,0.00016438,2]
[404421501,1770127841574,-996.68343672,0.00016438,2]
[404421502,1770127841583,-996.68343672,0.00016438,2]
[404421503,1770127841592,-996.68343672,0.00016438,2]
[404421504,1770127841602,-996.68343672,0.00016438,2]
[404421505,1770127841611,-996.68343672,0.00016438,2]
[404421506,1770127841620,-996.68343672,0.00016438,2]
[404421507,1770127841630,-996.68343672,0.00016438,2]
[404421508,1770127841640,-996.68343672,0.00016438,2]
[404421509,1770127841649,-996.68343672,0.00016438,2]
[404421510,1770127841663,-996.68343672,0.00016438,2]
[404421511,1770127841672,-996.68343672,0.00016438,2]
[404421512,1770127841682,-996.68343672,0.00016438,2]
[404421513,1770127841691,-996.68343672,0.00016438,2]
[404421514,1770127841700,-996.68343672,0.00016438,2]
[404421515,1770127841710,-996.68343672,0.00016438,2]
[404421516,1770127841719,-996.68343672,0.00016438,2]
[404421517,1770127841732,-996.68343672,0.00016438,2]
[404421518,1770127841742,-996.68343672,0.00016438,2]
[404421519,1770127841753,-996.68343672,0.00016438,2]
[404421520,1770127841764,-996.68343672,0.00016438,2]
[404421521,1770127841774,-996.68343672,0.00016438,2]
[404421522,1770127841786,-996.68343672,0.00016438,2]
[404421523,1770127841797,-996.68343672,0.00016438,2]
[404421524,1770127841808,-996.68343672,0.00016438,2]
[404421525,1770127841818,-996.68343672,0.00016438,2]
[404421526,1770127841827,-996.68343672,0.00016438,2]
[404421527,1770127841837,-996.68343672,0.00016438,2]
[404421528,1770127841847,-996.68343672,0.00016438,2]
[404421529,1770127841859,-996.68343672,0.00016438,2]
[404421530,1770127841868,-996.68343672,0.00016438,2]
[404421531,1770127841878,-3614.39253188,0.00016438,2]
[404421532,1770127841887,-3614.39253188,0.00016438,2]
[404421533,1770127841896,-3614.39253188,0.00016438,2]
[404421534,1770127841905,-3614.39253188,0.00016438,2]
[404421535,1770127841914,-3614.39253188,0.00016438,2]
[404421536,1770127841923,-3614.39253188,0.00016438,2]
[404421537,1770127841932,-3614.39253188,0.00016438,2]
[404421538,1770127841941,-3614.39253188,0.00016438,2]
[404421539,1770127841950,-3614.39253188,0.00016438,2]
[404421540,1770127841959,-3614.39253188,0.00016438,2]
[404421541,1770127841968,-3614.39253188,0.00016438,2]
[404421542,1770127841977,-3614.39253188,0.00016438,2]
[404421543,1770127841987,-3614.39253188,0.00016438,2]
[404421544,1770127841998,-3614.39253188,0.00016438,2]
[404421545,1770127842008,-3614.39253188,0.00016438,2]
[404421546,1770127842017,-3614.39253188,0.00016438,2]
[404421547,1770127842027,-3614.39253188,0.00016438,2]
[404421548,1770127842037,-3614.39253188,0.00016438,2]
[404421549,1770127842049,-3614.39253188,0.00016438,2]
[404421550,1770127842059,-3614.39253188,0.00016438,2]
[404421551,1770127842069,-3614.39253188,0.00016438,2]
[404421552,1770127842078,-3614.39253188,0.00016438,2]
[404421553,1770127842088,-3614.39253188,0.00016438,2]
[404421554,1770127842097,-3614.39253188,0.00016438,2]
[404421555,1770127842107,-3614.39253188,0.00016438,2]
[404421556,1770127842117,-3614.39253188,0.00016438,2]
[404421557,1770127842126,-3614.39253188,0.00016438,2]
[404421558,1770127842136,-3614.39253188,0.00016438,2]
[404421559,1770127842146,-3614.39253188,0.00016438,2]
[404421560,1770127842156,-3614.3925319,0.00016438,2]
[404421561,1770127842165,-3614.3925319,0.00016438,2]
[404421562,1770127842175,-3614.3925319,0.00016438,2]
[404421563,1770127842184,-3614.3925319,0.00016438,2]
[404421564,1770127842194,-3614.3925319,0.00016438,2]
[404421565,1770127842203,-3614.3925319,0.00016438,2]
[404421566,1770127842213,-3614.3925319,0.00016438,2]
[404421567,1770127842404,-3614.3925319,0.00016438,2]
[404421568,1770127842414,-3614.39253187,0.00016438,2]
[404421569,1770127842424,-5521.08,0.00016438,2]
[404421570,1770127842434,-800.0,0.00016438,2]
[404421571,1770127842443,-200.0,0.00016438,2]
[404421572,1770127842452,-457.87,0.00016463,18]
[404421573,1770127842462,-315.0,0.00016492,2]
[404421574,1770127842472,-775.48,0.00016498,2]
[404421575,1770127842482,-2147.65440152,0.00016562,2]
[404421576,1770127842492,-30000.0,0.00016679,2]
[404421577,1770127842502,-1500.0,0.000168,2]
[404421578,1770127842511,-1500.0,0.000168,2]
[404421579,1770127842522,-1000.0,0.0001686,2]
[404421580,1770127842531,-160.0,0.00017,7]
[404421581,1770127842540,-150.01399847,0.00017009,2]
[404421582,1770127842550,-1316.0,0.00017022,2]
[404421583,1770127842560,-839.0,0.0001704,2]
[404421584,1770127842568,-839.0,0.00017042,2]
[404421585,1770127842577,-500.0,0.00017062,2]
[404421586,1770127842585,-277.35679052,0.00017099,2]
[404421587,1770127842593,-151.0,0.00017099,2]
[404421588,1770127842601,-839.0,0.00017132,2]
[404421589,1770127842610,-1000.0,0.0001716,7]
[404421590,1770127842619,-1000.0,0.0001726,2]
[404421591,1770127842628,-172.45,0.00017325,2]
[404421592,1770127842636,-172.57,0.00017325,2]
[404421593,1770127842645,-172.57,0.00017325,2]
[404421594,1770127842654,-172.57,0.00017325,2]
[404421595,1770127842662,-892.33,0.00017352,2]
[404421596,1770127842671,-839.0,0.0001736,2]
[404421597,1770127842680,-1000.0,0.00017369,2]
[404421598,1770127842689,-213.0,0.00017373,2]
[404421599,1770127842699,-150.0,0.00017373,2]
[404421600,1770127842708,-171.889,0.00017373,2]
[404421601,1770127842717,-150.632,0.00017373,2]
[404421602,1770127842727,-272.463,0.00017373,2]
[404421603,1770127842737,-170.0,0.00017373,2]
[404421604,1770127842746,-150.04,0.00017373,2]
[404421605,1770127842755,-150.0,0.00017373,2]
[404421606,1770127842763,-150.0,0.00017373,2]
[404421607,1770127842771,-150.08,0.00017373,2]
[404421608,1770127842779,-151.0,0.00017373,2]
[404421609,1770127842789,-625.826,0.00017373,2]
[404421610,1770127842798,-1410.0,0.00017373,2]
[404421611,1770127842807,-1339.334,0.00017373,2]
[404421613,1770127842816,-150.0,0.00017373,2]
[404421614,1770127842825,-1271.0,0.00017373,2]
[404421615,1770127842834,-1205.0,0.00017373,2]
[404421616,1770127842843,-917.0,0.00017373,2]
[404421617,1770127842852,-6580.0,0.00017373,2]
[404421618,1770127842861,-3253.0,0.00017373,2]
[404421619,1770127842870,-434.82,0.00017419,2]
[404421620,1770127842880,-150.92,0.00017476,2]
[404421621,1770127842889,-527.14074722,0.00017479,2]
[404421622,1770127842899,-1000.0,0.00017492,2]
[404421623,1770127842908,-1000.0,0.00017534,2]
[404421624,1770127842918,-527.14074722,0.00017562,2]
[404421625,1770127842927,-166.66,0.00017588,2]
[404421626,1770127842936,-1500.0,0.000176,2]
[404421627,1770127842945,-500.0,0.000176,6]
[404421628,1770127842955,-527.14074722,0.00017616,2]
[404421629,1770127842964,-152.0,0.00017639,3]
[404421630,1770127842973,-1208.52677438,0.0001764,2]
[404421631,1770127842982,-287.61899177,0.00017647,2]
[404421632,1770127842990,-527.14074722,0.00017699,2]
[404421633,1770127843000,-3393.83018374,0.000177,2]
[404421634,1770127843009,-500.0,0.000177,6]
[404421635,1770127843018,-500.0,0.00017726,2]
[404421636,1770127843027,-457.87,0.00017732,19]
[404421637,1770127843036,-457.87,0.00017732,20]
[404421638,1770127843045,-457.87,0.00017732,21]
[404421639,1770127843054,-457.87,0.00017732,21]
[404421640,1770127843062,-457.87,0.00017732,21]
[404421641,1770127843071,-457.87,0.00017732,21]
[404421642,1770127843080,-458.03207191,0.00017732,21]
[404421643,1770127843089,-527.14074722,0.00017753,2]
[404421644,1770127843098,-500.0,0.000178,6]
[404421645,1770127843107,-1000.0,0.00017808,2]
[404421646,1770127843115,-2000.0,0.0001782,2]
[404421647,1770127843122,-2000.0,0.0001782,2]
[404421648,1770127843130,-2000.0,0.0001782,2]
[404421649,1770127843138,-2000.0,0.0001782,2]
[404421650,1770127843147,-527.14074722,0.00017836,2]
[404421651,1770127843156,-200.0,0.00017855,2]
[404421652,1770127843165,-200.0,0.00017856,2]
[404421653,1770127843174,-527.14074722,0.0001789,2]
[404421654,1770127843183,-25000.0,0.00017891,3]
[404421655,1770127843192,-25000.0,0.000179,3]
[404421656,1770127843201,-160.0,0.000179,3]
[404421657,1770127843210,-5000.0,0.000179,2]
[404421658,1770127843219,-25000.0,0.000179,3]
[404421659,1770127843228,-15523.4535329,0.000179,3]
[404421660,1770127843237,-770.0,0.000179,6]
[404421661,1770127843246,-2147.65440152,0.000179,2]
[404421662,1770127843255,-269.09178599,0.000179,2]
[404421663,1770127843264,-500.0,0.000179,2]
[404421664,1770127843273,-500.0,0.000179,2]
[404421665,1770127843282,-500.0,0.000179,2]
[404421666,1770127843291,-500.0,0.000179,2]
[404421667,1770127843300,-500.0,0.000179,2]
[404421668,1770127843309,-500.0,0.000179,2]
[404421669,1770127843318,-500.0,0.000179,2]
[404421670,1770127843327,-500.0,0.000179,2]
[404421671,1770127843336,-500.0,0.000179,2]
[404421672,1770127843345,-19503.0,0.000179,2]
[404421673,1770127843355,-5888.0,0.00017913,2]
[404421674,1770127843364,-5888.0,0.00017947,2]
[404421675,1770127843374,-527.14074722,0.00017973,2]
[404421676,1770127843383,-5888.0,0.00017976,2]
[404421677,1770127843392,-237.0,0.00017978,2]
[404421678,1770127843402,-824.69144558,0.00017982,2]
[404421679,1770127843411,-165.0,0.0001799,4]
[404421680,1770127843420,-165.0,0.0001799,4]
[404421681,1770127843429,-61202.1424663,0.00017992,2]
[404421682,1770127843439,-6125.8770297,0.00017992,2]
[404421683,1770127843448,-183606.4273991,0.00017992,2]
[404421684,1770127843457,-151.0,0.00017996,2]
[404421685,1770127843466,-151.0,0.00017997,2]
[404421686,1770127843476,-721.12765535,0.00017998,4]
[404421687,1770127843485,-747.8093786,0.00017998,4]
[404421688,1770127843495,-775.47832561,0.00017998,4]
[404421689,1770127843504,-500.0,0.00017998,4]
[404421690,1770127843513,-804.17102365,0.00017998,4]
[404421691,1770127843522,-500.0,0.00017998,4]
[404421692,1770127843532,-833.92535153,0.00017998,4]
[404421693,1770127843541,-500.0,0.00017998,4]
[404421694,1770127843550,-864.78058953,0.00017998,4]
[404421695,1770127843559,-500.0,0.00017998,4]
[404421696,1770127843568,-896.77747135,0.00017998,4]
[404421697,1770127843578,-174.61919141,0.00017998,4]
[404421698,1770127843587,-500.0,0.00017998,4]
[404421699,1770127843596,-500.0,0.00017998,4]
[404421700,1770127843606,-181.08010149,0.00017998,4]
[404421701,1770127843615,-929.95823779,0.00017998,4]
[404421702,1770127843624,-500.0,0.00017998,4]
[404421703,1770127843634,-187.78006525,0.00017998,4]
[404421704,1770127843643,-964.36669259,0.00017998,4]
[404421705,1770127843655,-500.0,0.00017998,4]
[404421706,1770127843666,-194.72792766,0.00017998,4]
[404421707,1770127843675,-1000.04826021,0.00017998,4]
[404421708,1770127843685,-201.93286099,0.00017998,4]
[404421710,1770127843695,-209.40437684,0.00017998,4]
[404421711,1770127843705,-174.13280155,0.00017998,4]
[404421712,1770127843714,-500.0,0.00017998,4]
[404421713,1770127843723,-217.15233878,0.00017998,4]